fUSD/lending_fUSD_20240331
["ID","MTS","AMOUNT","RATE_DAILY","PERIOD"]
[321079242,1711883460095,-1712.16,0.00042465,4]
[321079243,1711883460104,-500.0,0.00042465,4]
[321079244,1711883460113,-2748.38,0.00042465,4]
[321079245,1711883460123,-404.501862,0.00042465,14]
[321079246,1711883460132,-500.0,0.00042465,4]
[321079247,1711883460141,-500.0,0.00042465,4]
[321079248,1711883460150,-531.49355601,0.00042465,4]
[321079249,1711883460159,-500.0,0.00042465,4]
[321079250,1711883460168,-404.501862,0.00042465,14]
[321079251,1711883460178,-500.0,0.00042465,4]
[321079252,1711883460187,-4301.58,0.00042465,4]
[321079253,1711883460196,-531.6,0.00042465,4]
[321079254,1711883460206,-500.0,0.00042465,4]
[321079255,1711883460215,-500.0,0.00042465,4]
[321079256,1711883460225,-525.798803,0.00042465,14]
[321079257,1711883460234,-9908.7,0.00042465,4]
[321079258,1711883460243,-525.798803,0.00042465,14]
[321079259,1711883460253,-3656.45,0.00042465,4]
[321079260,1711883460262,-707.92,0.00042465,4]
[321079261,1711883460271,-2921.85,0.00042465,4]
[321079262,1711883460280,-500.0,0.00042465,4]
[321079263,1711883460289,-500.0,0.00042465,4]
[321079264,1711883460299,-3783.97,0.00042465,4]
[321079265,1711883460309,-170.535119,0.00042465,14]
[321079266,1711883460318,-170.535119,0.00042465,14]
[321079267,1711883460328,-500.0,0.00042465,4]
[321079268,1711883460337,-2102.16,0.00042465,4]
[321079269,1711883460346,-15160.16,0.00042465,4]
[321079270,1711883460355,-2273.33,0.00042465,4]
[321079271,1711883460364,-1657.86,0.00042465,4]
[321079272,1711883460373,-500.0,0.00042465,4]
[321079273,1711883460383,-500.0,0.00042465,4]
[321079274,1711883460393,-3435.73,0.00042465,4]
[321079275,1711883460402,-500.0,0.00042465,4]
[321079276,1711883460415,-500.0,0.00042465,4]
[321079277,1711883460424,-500.0,0.00042465,4]
[321079278,1711883460433,-3547.44,0.00042465,4]
[321079279,1711883460442,-2803.49,0.00042465,4]
[321079280,1711883460451,-500.0,0.00042465,4]
[321079281,1711883460462,-500.0,0.00042465,4]
[321079282,1711883460471,-152.030222,0.00042465,14]
[321079283,1711883460480,-152.030231,0.00042465,14]
[321079284,1711883460490,-4194.52,0.00042465,4]
[321079285,1711883460499,-9215.25,0.00042465,4]
[321079286,1711883460508,-249.33041,0.00042465,14]
[321079287,1711883460517,-500.0,0.00042465,4]
[321079288,1711883460526,-500.0,0.00042465,4]
[321079289,1711883460535,-2011.87,0.00042465,4]
[321079290,1711883460545,-249.330404,0.00042465,14]
[321079291,1711883460554,-500.0,0.00042465,4]
[321079292,1711883460563,-500.0,0.00042465,4]
[321079293,1711883460572,-4752.87,0.00042465,4]
[321079294,1711883460582,-500.0,0.00042465,4]
[321079295,1711883460590,-2598.4,0.00042465,4]
[321079296,1711883460600,-2126.31,0.00042465,4]
[321079297,1711883460609,-11877.83,0.00042465,4]
[321079298,1711883460619,-518.02,0.00042465,4]
[321079299,1711883460671,-1937.78,0.00042465,4]
[321079300,1711883460680,-10453.94,0.00042465,4]
[321079301,1711883460689,-1076.45,0.00042465,4]
[321079302,1711883460699,-500.0,0.00042465,4]
[321079303,1711883460710,-500.0,0.00042465,4]
[321079304,1711883460720,-500.0,0.00042465,4]
[321079305,1711883460730,-2336.79,0.00042465,4]
[321079306,1711883460739,-552.15,0.00042465,4]
[321079307,1711883460749,-1920.41,0.00042465,4]
[321079308,1711883460760,-2290.08,0.00042465,4]
[321079309,1711883460769,-1182.09,0.00042465,4]
[321079310,1711883460778,-3941.13,0.00042465,4]
[321079311,1711883460787,-2482.25,0.00042465,4]
[321079312,1711883460796,-16241.59,0.00042465,4]
[321079313,1711883460805,-3222.61,0.00042465,4]
[321079314,1711883460814,-500.0,0.00042465,4]
[321079315,1711883460824,-500.0,0.00042465,4]
[321079316,1711883460834,-535.83,0.00042465,4]
[321079317,1711883460843,-500.0,0.00042465,4]
[321079318,1711883460853,-2590.66,0.00042465,4]
[321079319,1711883460863,-1928.129715,0.00042465,14]
[321079320,1711883460872,-609.57,0.00042465,4]
[321079321,1711883460881,-427.07422,0.00042465,14]
[321079322,1711883460890,-3509.53,0.00042465,4]
[321079323,1711883460899,-1928.129715,0.00042465,14]
[321079324,1711883460909,-427.07422,0.00042465,14]
[321079325,1711883460920,-500.0,0.00042465,4]
[321079326,1711883460930,-151.0,0.00042465,14]
[321079327,1711883460940,-5528.21,0.00042465,4]
[321079328,1711883460951,-2238.05,0.00042465,4]
[321079329,1711883460960,-663.74,0.00042465,4]
[321079330,1711883460969,-2433.18,0.00042465,4]
[321079331,1711883460979,-500.0,0.00042465,4]
[321079332,1711883460988,-18780.41,0.00042465,4]
[321079333,1711883460998,-502.77,0.00042465,4]
[321079334,1711883461007,-1950.88,0.00042465,4]
[321079335,1711883461016,-293.68146112,0.00042465,4]
[321079336,1711883461026,-500.0,0.00042465,4]
[321079337,1711883461035,-165.261704,0.00042465,14]
[321079338,1711883461044,-165.261704,0.00042465,14]
[321079339,1711883461053,-608.39,0.00042465,4]
[321079340,1711883461062,-649.7722126,0.00042465,4]
[321079341,1711883461072,-16662.45,0.00042465,4]
[321079342,1711883461082,-420.087501,0.00042465,14]
[321079343,1711883461092,-1551.3,0.00042465,4]
[321079344,1711883461102,-682.79,0.00042465,4]
[321079345,1711883461111,-500.0,0.00042465,4]
[321079346,1711883461120,-4294.08,0.00042465,4]
[321079347,1711883461130,-420.087501,0.00042465,14]
[321079348,1711883461139,-935.22,0.00042465,4]
[321079349,1711883461148,-1935.59,0.00042465,4]
[321079350,1711883461157,-1000.0,0.00042466,14]
[321079351,1711883461166,-250.0,0.000425,50]
[321079352,1711883461175,-749.0,0.000425,32]
[321079353,1711883461185,-157.591198,0.00042533,44]
[321079354,1711883461194,-1000.0,0.00042534,14]
[321079355,1711883461203,-38232.19424494,0.00042569,2]
[321079356,1711883461212,-12068.95363053,0.00042569,2]
[321079357,1711883461221,-7513.16027902,0.00042569,2]
[321079358,1711883461231,-4561.50497404,0.00042569,2]
[321079359,1711883461240,-871.83681812,0.00042569,2]
[321079360,1711883461249,-4829.28498711,0.00042569,2]
[321079361,1711883461258,-1000.0,0.00042603,14]
[321079362,1711883461268,-1000.0,0.00042671,14]
[321079363,1711883461277,-481.97,0.000427,7]
[321079364,1711883461287,-214.12284799,0.000427,58]
[321079365,1711883461296,-233.36252727,0.00042739,2]
[321079366,1711883461306,-500.0,0.00042739,4]
[321079367,1711883461315,-500.0,0.00042739,4]
[321079368,1711883461324,-509.5320965,0.00042739,4]
[321079369,1711883461334,-679.43,0.00042739,2]
[321079370,1711883461343,-162.46759805,0.00042739,4]
[321079371,1711883461353,-500.0,0.00042739,4]
[321079372,1711883461362,-500.0,0.00042739,4]
[321079373,1711883461371,-150.0,0.00042739,4]
[321079374,1711883461380,-555.12,0.00042739,4]
[321079375,1711883461390,-500.0,0.00042739,2]
[321079376,1711883461399,-500.0,0.00042739,4]
[321079377,1711883461410,-557.44023725,0.00042739,4]
[321079378,1711883461422,-549.48,0.00042739,4]
[321079379,1711883461431,-1070.48,0.00042739,4]
[321079380,1711883461440,-338.821322,0.00042739,14]
[321079381,1711883461449,-338.821328,0.00042739,14]
[321079382,1711883461459,-500.0,0.00042739,4]
[321079383,1711883461469,-500.0,0.00042739,4]
[321079384,1711883461478,-500.0,0.00042739,4]
[321079385,1711883461489,-459.48407242,0.00042739,4]
[321079386,1711883461500,-500.0,0.00042739,4]
[321079387,1711883461510,-1862.31,0.00042739,4]
[321079388,1711883461520,-2605.92,0.00042739,4]
[321079389,1711883461530,-500.0,0.00042739,4]
[321079390,1711883461540,-9670.17,0.00042739,4]
[321079391,1711883461550,-1122.17,0.00042739,4]
[321079392,1711883461559,-500.0,0.00042739,4]
[321079393,1711883461568,-500.0,0.00042739,4]
[321079394,1711883461577,-1712.16,0.00042739,4]
[321079395,1711883461588,-489.52135178,0.00042739,4]
[321079396,1711883461597,-2748.38,0.00042739,4]
[321079397,1711883461607,-404.501862,0.00042739,14]
[321079398,1711883461619,-500.0,0.00042739,4]
[321079399,1711883461629,-500.0,0.00042739,4]
[321079400,1711883461641,-444.61032653,0.00042739,4]
[321079401,1711883461651,-404.501867,0.00042739,14]
[321079402,1711883461660,-500.0,0.00042739,4]
[321079403,1711883461670,-4301.58,0.00042739,4]
[321079404,1711883461681,-531.6,0.00042739,4]
[321079405,1711883461690,-500.0,0.00042739,4]
[321079406,1711883461701,-500.0,0.00042739,4]
[321079407,1711883461712,-525.798803,0.00042739,14]
[321079408,1711883461723,-9908.7,0.00042739,4]
[321079409,1711883461733,-3656.45,0.00042739,4]
[321079410,1711883461743,-525.798798,0.00042739,14]
[321079411,1711883461753,-707.92,0.00042739,4]
[321079412,1711883461765,-2921.85,0.00042739,4]
[321079413,1711883461776,-500.0,0.00042739,4]
[321079414,1711883461786,-500.0,0.00042739,4]
[321079415,1711883461796,-3783.97,0.00042739,4]
[321079416,1711883461807,-170.535119,0.00042739,14]
[321079417,1711883461816,-170.535124,0.00042739,14]
[321079418,1711883461826,-500.0,0.00042739,4]
[321079419,1711883461838,-2102.16,0.00042739,4]
[321079420,1711883461847,-15160.16,0.00042739,4]
[321079421,1711883461856,-2273.33,0.00042739,4]
[321079422,1711883461866,-1657.86,0.00042739,4]
[321079423,1711883461876,-500.0,0.00042739,4]
[321079424,1711883461886,-500.0,0.00042739,4]
[321079425,1711883461897,-3435.73,0.00042739,4]
[321079426,1711883461907,-500.0,0.00042739,4]
[321079427,1711883461918,-500.0,0.00042739,4]
[321079428,1711883461928,-500.0,0.00042739,4]
[321079429,1711883461939,-3547.44,0.00042739,4]
[321079430,1711883461949,-2803.49,0.00042739,4]
[321079431,1711883461959,-500.0,0.00042739,4]
[321079432,1711883461969,-500.0,0.00042739,4]
[321079433,1711883461979,-4194.52,0.00042739,4]
[321079434,1711883461989,-9215.25,0.00042739,4]
[321079435,1711883461999,-500.0,0.00042739,4]
[321079436,1711883462011,-500.0,0.00042739,4]
[321079437,1711883462021,-2011.87,0.00042739,4]
[321079438,1711883462031,-500.0,0.00042739,4]
[321079439,1711883462041,-500.0,0.00042739,4]
[321079440,1711883462051,-4752.87,0.00042739,4]
[321079441,1711883462061,-500.0,0.00042739,4]
[321079442,1711883462072,-2598.4,0.00042739,4]
[321079443,1711883462082,-2126.31,0.00042739,4]
[321079444,1711883462092,-11877.83,0.00042739,4]
[321079445,1711883462103,-518.02,0.00042739,4]
[321079446,1711883462113,-1937.78,0.00042739,4]
[321079447,1711883462122,-10453.94,0.00042739,4]
[321079448,1711883462132,-1076.45,0.00042739,4]
[321079449,1711883462142,-500.0,0.00042739,4]
[321079450,1711883462152,-500.0,0.00042739,4]
[321079451,1711883462162,-500.0,0.00042739,4]
[321079452,1711883462172,-2336.79,0.00042739,4]
[321079453,1711883462183,-552.15,0.00042739,4]
[321079454,1711883462193,-1920.41,0.00042739,4]
[321079455,1711883462203,-2290.08,0.00042739,4]
[321079456,1711883462213,-1182.09,0.00042739,4]
[321079457,1711883462223,-3941.13,0.00042739,4]
[321079458,1711883462234,-2482.25,0.00042739,4]
[321079459,1711883462243,-16241.59,0.00042739,4]
[321079460,1711883462252,-3222.61,0.00042739,4]
[321079461,1711883462262,-500.0,0.00042739,4]
[321079462,1711883462272,-500.0,0.00042739,4]
[321079463,1711883462282,-535.83,0.00042739,4]
[321079464,1711883462291,-500.0,0.00042739,4]
[321079465,1711883462301,-2590.66,0.00042739,4]
[321079466,1711883462311,-609.57,0.00042739,4]
[321079467,1711883462319,-3509.53,0.00042739,4]
[321079468,1711883462330,-500.0,0.00042739,4]
[321079469,1711883462340,-5528.21,0.00042739,4]
[321079470,1711883462351,-2238.05,0.00042739,4]
[321079471,1711883462362,-663.74,0.00042739,4]
[321079472,1711883462373,-2433.18,0.00042739,4]
[321079473,1711883462383,-500.0,0.00042739,4]
[321079474,1711883462394,-18780.41,0.00042739,4]
[321079475,1711883462405,-502.77,0.00042739,4]
[321079476,1711883462419,-1950.88,0.00042739,4]
[321079477,1711883462429,-500.0,0.00042739,4]
[321079478,1711883462439,-608.39,0.00042739,4]
[321079479,1711883462449,-16662.45,0.00042739,4]
[321079480,1711883462461,-1551.3,0.00042739,4]
[321079481,1711883462471,-682.79,0.00042739,4]
[321079482,1711883462481,-500.0,0.00042739,4]
[321079483,1711883462491,-4294.08,0.00042739,4]
[321079484,1711883462500,-935.22,0.00042739,4]
[321079485,1711883462510,-1935.59,0.00042739,4]
[321079486,1711883462520,-1000.0,0.0004274,14]
[321079487,1711883462530,-162.4012862,0.00042763,60]
[321079488,1711883462541,-150.0,0.00042763,60]
[321079489,1711883462553,-500.0,0.00042763,60]
[321079490,1711883462564,-151.0,0.00042768,2]
[321079491,1711883462575,-5785.2012244,0.00042771,2]
[321079492,1711883462585,-545.59,0.000428,7]
[321079493,1711883462595,-151.0,0.000428,14]
[321079494,1711883462605,-8196.8,0.000428,4]
[321079495,1711883462614,-8196.8,0.000428,4]
[321079496,1711883462625,-8196.8,0.000428,4]
[321079497,1711883462635,-8196.8,0.000428,4]
[321079498,1711883462644,-8196.8,0.000428,4]
[321079499,1711883462655,-8196.8,0.000428,4]
[321079500,1711883462666,-8196.8,0.000428,4]
[321079501,1711883462676,-8196.8,0.000428,4]
[321079502,1711883462687,-8196.8,0.000428,4]
[321079503,1711883462697,-8196.8,0.000428,4]
[321079504,1711883462707,-8196.8,0.000428,4]
[321079505,1711883462717,-8196.8,0.000428,4]
[321079506,1711883462727,-8196.8,0.000428,4]
[321079507,1711883462736,-8196.8,0.000428,4]
[321079508,1711883462745,-196.77,0.000428,4]
[321079509,1711883462755,-8196.8,0.000428,4]
[321079510,1711883462765,-196.77,0.000428,4]
[321079511,1711883462775,-8196.8,0.000428,4]
[321079512,1711883462784,-196.77,0.000428,4]
[321079513,1711883462794,-196.77,0.000428,4]
[321079514,1711883462805,-8196.8,0.000428,4]
[321079515,1711883462814,-8196.8,0.000428,4]
[321079516,1711883462825,-8196.8,0.000428,4]
[321079517,1711883462836,-196.77,0.000428,4]
[321079518,1711883462846,-196.77,0.000428,4]
[321079519,1711883462856,-8196.8,0.000428,4]
[321079520,1711883462867,-196.77,0.000428,4]
[321079521,1711883462876,-196.77,0.000428,4]
[321079522,1711883462890,-196.77,0.000428,4]
[321079523,1711883462900,-196.77,0.000428,4]
[321079524,1711883462910,-196.77,0.000428,4]
[321079525,1711883462919,-196.77,0.000428,4]
[321079526,1711883462932,-1928.129715,0.000428,14]
[321079527,1711883462941,-427.07422,0.000428,14]
[321079528,1711883462953,-1928.129722,0.000428,14]
[321079529,1711883462964,-427.074227,0.000428,14]
[321079530,1711883462974,-151.0,0.000428,14]
[321079531,1711883462985,-165.261704,0.000428,14]
[321079532,1711883462995,-165.261706,0.000428,14]
[321079533,1711883463005,-420.087501,0.000428,14]
[321079534,1711883463015,-420.087499,0.000428,14]
[321079535,1711883463025,-1000.0,0.00042808,14]
[321079536,1711883463035,-1000.0,0.00042877,14]
[321079537,1711883463045,-2205.06765989,0.00042888,2]
[321079538,1711883463056,-473.0,0.000429,18]
[321079539,1711883463066,-303.537319,0.000429,8]
[321079540,1711883463077,-898.38739873,0.00042913,2]
[321079541,1711883463088,-898.38739873,0.00042913,2]
[321079542,1711883463098,-898.38739873,0.00042913,2]
[321079543,1711883463108,-898.38739873,0.00042913,2]
[321079544,1711883463118,-898.38739873,0.00042913,2]
[321079545,1711883463128,-898.38739873,0.00042913,2]
[321079546,1711883463138,-898.38739873,0.00042913,2]
[321079547,1711883463147,-898.38739873,0.00042913,2]
[321079548,1711883463157,-898.38739873,0.00042913,2]
[321079549,1711883463168,-898.38739873,0.00042913,2]
[321079550,1711883463177,-898.38739873,0.00042913,2]
[321079551,1711883463187,-898.38739873,0.00042913,2]
[321079552,1711883463196,-898.38739873,0.00042913,2]
[321079553,1711883463206,-898.38739873,0.00042913,2]
[321079554,1711883463215,-898.38739873,0.00042913,2]
[321079555,1711883463225,-898.38739873,0.00042913,2]
[321079556,1711883463236,-898.38739873,0.00042913,2]
[321079557,1711883463247,-898.38739873,0.00042913,2]
[321079558,1711883463257,-898.38739873,0.00042913,2]
[321079559,1711883463269,-898.88,0.00042913,2]
[321079560,1711883463279,-361.95072755,0.00042913,2]
[321079561,1711883463290,-361.95072755,0.00042913,2]
[321079562,1711883463301,-361.95072755,0.00042913,2]
[321079563,1711883463311,-361.95072755,0.00042913,2]
[321079564,1711883463322,-361.95072755,0.00042913,2]
[321079565,1711883463333,-361.95072755,0.00042913,2]
[321079566,1711883463345,-361.95072755,0.00042913,2]
[321079567,1711883463356,-361.95072755,0.00042913,2]
[321079568,1711883463367,-361.95072755,0.00042913,2]
[321079569,1711883463376,-361.95072755,0.00042913,2]
[321079570,1711883463388,-361.95072755,0.00042913,2]
[321079571,1711883463399,-361.95072755,0.00042913,2]
[321079572,1711883463409,-361.95072755,0.00042913,2]
[321079573,1711883463423,-361.95072755,0.00042913,2]
[321079574,1711883463434,-361.95072755,0.00042913,2]
[321079575,1711883463445,-361.95072755,0.00042913,2]
[321079576,1711883463456,-361.95072755,0.00042913,2]
[321079577,1711883463467,-361.95072755,0.00042913,2]
[321079578,1711883463478,-361.95072755,0.00042913,2]
[321079579,1711883463488,-362.45,0.00042913,2]
[321079580,1711883463500,-154.8117486,0.00042913,2]
[321079581,1711883463512,-154.8117486,0.00042913,2]
[321079582,1711883463521,-154.8117486,0.00042913,2]
[321079583,1711883463532,-154.8117486,0.00042913,2]
[321079584,1711883463543,-154.8117486,0.00042913,2]
[321079585,1711883463554,-154.8117486,0.00042913,2]
[321079586,1711883463565,-154.8117486,0.00042913,2]
[321079587,1711883463576,-154.8117486,0.00042913,2]
[321079588,1711883463588,-154.8117486,0.00042913,2]
[321079589,1711883463597,-154.8117486,0.00042913,2]
[321079590,1711883463608,-154.8117486,0.00042913,2]
[321079591,1711883463619,-154.8117486,0.00042913,2]
[321079592,1711883463630,-154.8117486,0.00042913,2]
[321079593,1711883463641,-154.8117486,0.00042913,2]
[321079594,1711883463652,-154.8117486,0.00042913,2]
[321079595,1711883463663,-154.8117486,0.00042913,2]
[321079596,1711883463674,-154.8117486,0.00042913,2]
[321079597,1711883463685,-154.8117486,0.00042913,2]
[321079598,1711883463696,-155.31,0.00042913,2]
[321079599,1711883463708,-361.31985767,0.00042913,2]
[321079600,1711883463719,-361.31985767,0.00042913,2]
[321079601,1711883463728,-361.31985767,0.00042913,2]
[321079602,1711883463738,-361.31985767,0.00042913,2]
[321079603,1711883463748,-361.31985767,0.00042913,2]
[321079604,1711883463759,-361.31985767,0.00042913,2]
[321079605,1711883463769,-361.31985767,0.00042913,2]
[321079606,1711883463779,-361.31985767,0.00042913,2]
[321079607,1711883463790,-361.31985767,0.00042913,2]
[321079608,1711883463802,-361.31985767,0.00042913,2]
[321079609,1711883463812,-361.31985767,0.00042913,2]
[321079610,1711883463823,-361.31985767,0.00042913,2]
[321079611,1711883463833,-361.31985767,0.00042913,2]
[321079612,1711883463843,-361.31985767,0.00042913,2]
[321079613,1711883463852,-361.31985767,0.00042913,2]
[321079614,1711883463863,-361.31985767,0.00042913,2]
[321079615,1711883463872,-361.31985767,0.00042913,2]
[321079616,1711883463881,-361.31985767,0.00042913,2]
[321079617,1711883463891,-361.31985767,0.00042913,2]
[321079618,1711883463900,-361.81,0.00042913,2]
[321079619,1711883463909,-1000.0,0.00042945,14]
[321079620,1711883463919,-1813.8799476,0.00042983,2]
[321079621,1711883463928,-155.0,0.00042998,4]
[321079622,1711883463938,-474.45,0.00043,7]
[321079623,1711883463947,-234.65276203,0.00043,4]
[321079624,1711883463956,-500.0,0.00043,60]
[321079625,1711883463966,-1000.0,0.00043,120]
[321079626,1711883463975,-83000.0,0.00043,10]
[321079627,1711883463985,-600.0,0.00043,3]
[321079628,1711883463995,-749.0,0.00043,32]
[321079629,1711883464005,-500.0,0.00043013,4]
[321079630,1711883464014,-500.0,0.00043013,4]
[321079631,1711883464024,-679.43,0.00043013,2]
[321079632,1711883464034,-500.0,0.00043013,4]
[321079633,1711883464043,-344.64739878,0.00043013,4]
[321079634,1711883464053,-150.0,0.00043013,4]
[321079635,1711883464062,-555.12,0.00043013,4]
[321079636,1711883464072,-500.0,0.00043013,2]
[321079637,1711883464084,-500.0,0.00043013,4]
[321079638,1711883464094,-549.48,0.00043013,4]
[321079639,1711883464104,-1070.48,0.00043013,4]
[321079640,1711883464114,-500.0,0.00043013,4]
[321079641,1711883464124,-500.0,0.00043013,4]
[321079642,1711883464134,-369.58407587,0.00043013,4]
[321079643,1711883464144,-500.0,0.00043013,4]
[321079644,1711883464153,-1862.31,0.00043013,4]
[321079645,1711883464163,-2605.92,0.00043013,4]
[321079646,1711883464172,-169.94370001,0.00043013,4]
[321079647,1711883464182,-9670.17,0.00043013,4]
[321079648,1711883464192,-1122.17,0.00043013,4]
[321079649,1711883464201,-500.0,0.00043013,4]
[321079650,1711883464211,-500.0,0.00043013,4]
[321079651,1711883464220,-1712.16,0.00043013,4]
[321079652,1711883464230,-2748.38,0.00043013,4]
[321079653,1711883464240,-500.0,0.00043013,4]
[321079654,1711883464249,-500.0,0.00043013,4]
[321079655,1711883464258,-500.0,0.00043013,4]
[321079656,1711883464268,-4301.58,0.00043013,4]
[321079657,1711883464277,-531.6,0.00043013,4]
[321079658,1711883464287,-500.0,0.00043013,4]
[321079659,1711883464297,-500.0,0.00043013,4]
[321079660,1711883464306,-9908.7,0.00043013,4]
[321079661,1711883464316,-3656.45,0.00043013,4]
[321079662,1711883464325,-707.92,0.00043013,4]
[321079663,1711883464335,-2921.85,0.00043013,4]
[321079664,1711883464345,-500.0,0.00043013,4]
[321079665,1711883464354,-500.0,0.00043013,4]
[321079666,1711883464364,-3783.97,0.00043013,4]
[321079667,1711883464373,-500.0,0.00043013,4]
[321079668,1711883464383,-2102.16,0.00043013,4]
[321079669,1711883464393,-15160.16,0.00043013,4]
[321079670,1711883464402,-2273.33,0.00043013,4]
[321079671,1711883464414,-1657.86,0.00043013,4]
[321079672,1711883464426,-241.00375955,0.00043013,4]
[321079673,1711883464435,-500.0,0.00043013,4]
[321079674,1711883464445,-3435.73,0.00043013,4]
[321079675,1711883464457,-500.0,0.00043013,4]
[321079676,1711883464468,-500.0,0.00043013,4]
[321079677,1711883464478,-500.0,0.00043013,4]
[321079678,1711883464488,-3547.44,0.00043013,4]
[321079679,1711883464498,-2803.49,0.00043013,4]
[321079680,1711883464509,-500.0,0.00043013,4]
[321079681,1711883464518,-500.0,0.00043013,4]
[321079682,1711883464528,-4194.52,0.00043013,4]
[321079683,1711883464538,-9215.25,0.00043013,4]
[321079684,1711883464548,-500.0,0.00043013,4]
[321079685,1711883464557,-500.0,0.00043013,4]
[321079686,1711883464567,-2011.87,0.00043013,4]
[321079687,1711883464576,-500.0,0.00043013,4]
[321079688,1711883464586,-500.0,0.00043013,4]
[321079689,1711883464595,-4752.87,0.00043013,4]
[321079690,1711883464605,-500.0,0.00043013,4]
[321079691,1711883464615,-2598.4,0.00043013,4]
[321079692,1711883464624,-2126.31,0.00043013,4]
[321079693,1711883464634,-11877.83,0.00043013,4]
[321079694,1711883464647,-518.02,0.00043013,4]
[321079695,1711883464657,-1937.78,0.00043013,4]
[321079696,1711883464668,-10453.94,0.00043013,4]
[321079697,1711883464678,-1076.45,0.00043013,4]
[321079698,1711883464687,-500.0,0.00043013,4]
[321079699,1711883464696,-500.0,0.00043013,4]
[321079700,1711883464705,-500.0,0.00043013,4]
[321079701,1711883464716,-2336.79,0.00043013,4]
[321079702,1711883464725,-552.15,0.00043013,4]
[321079703,1711883464735,-1920.41,0.00043013,4]
[321079704,1711883464745,-2290.08,0.00043013,4]
[321079705,1711883464755,-1182.09,0.00043013,4]
[321079706,1711883464765,-3941.13,0.00043013,4]
[321079707,1711883464775,-2482.25,0.00043013,4]
[321079708,1711883464785,-16241.59,0.00043013,4]
[321079709,1711883464794,-3222.61,0.00043013,4]
[321079710,1711883464804,-500.0,0.00043013,4]
[321079711,1711883464814,-500.0,0.00043013,4]
[321079712,1711883464825,-535.83,0.00043013,4]
[321079713,1711883464837,-500.0,0.00043013,4]
[321079714,1711883464848,-2590.66,0.00043013,4]
[321079715,1711883464859,-609.57,0.00043013,4]
[321079716,1711883464868,-3509.53,0.00043013,4]
[321079717,1711883464878,-500.0,0.00043013,4]
[321079718,1711883464888,-5528.21,0.00043013,4]
[321079719,1711883464897,-2238.05,0.00043013,4]
[321079720,1711883464907,-663.74,0.00043013,4]
[321079721,1711883464916,-2433.18,0.00043013,4]
[321079722,1711883464926,-354.05329326,0.00043013,4]
[321079723,1711883464936,-18780.41,0.00043013,4]
[321079724,1711883464945,-502.77,0.00043013,4]
[321079725,1711883464955,-1950.88,0.00043013,4]
[321079726,1711883464965,-500.0,0.00043013,4]
[321079727,1711883464974,-608.39,0.00043013,4]
[321079728,1711883464984,-16662.45,0.00043013,4]
[321079729,1711883464993,-1551.3,0.00043013,4]
[321079730,1711883465003,-682.79,0.00043013,4]
[321079731,1711883465013,-500.0,0.00043013,4]
[321079732,1711883465023,-4294.08,0.00043013,4]
[321079733,1711883465033,-935.22,0.00043013,4]
[321079734,1711883465043,-1935.59,0.00043013,4]
[321079735,1711883465053,-1000.0,0.00043014,14]
[321079736,1711883465063,-158.81,0.00043055,2]
[321079737,1711883465074,-150.0,0.00043056,120]
[321079738,1711883465085,-1000.0,0.00043082,14]
[321079739,1711883465095,-1000.0,0.00043151,14]
[321079740,1711883465105,-156.41895585,0.00043162,30]
[321079741,1711883465115,-1000.0,0.00043219,14]